bitfinex/quotes_SOLUSD_20240902
["timestamp","ask_amount","ask_price","bid_price","bid_amount"]
[1725244030821,12.65313228,130.34,130.28,38.3773]
[1725244031014,12.65313228,130.32,130.28,26.8637]
[1725244032328,20.32653228,130.32,130.28,26.8637]
[1725244033128,0.12549,130.33,130.29,7.6749]
[1725244033343,27.79789,130.34,130.29,9.20968138]
[1725244033533,0.12549,130.33,130.29,9.20968138]
[1725244036151,6.1806,130.35,130.3,19.1858]
[1725244036469,18.83373228,130.35,130.31,7.6735]
[1725244037649,7.6723,130.34,130.3,19.1858]
[1725244037861,0.25098,130.33,130.3,19.1858]
[1725244038724,7.92378,130.33,130.3,19.1858]
[1725244038925,20.57691228,130.33,130.3,19.1858]
[1725244039749,16.2396,130.32,130.28,7.6755]
[1725244041452,16.2396,130.32,130.29,19.187]
[1725244041646,16.2396,130.32,130.3,7.6745]
[1725244044969,16.2396,130.32,130.29,26.8619]
[1725244049039,16.2396,130.32,130.3,7.6745]
[1725244053345,16.2396,130.32,130.29,26.862]
[1725244054044,16.2396,130.32,130.29,19.187]
[1725244056761,16.2396,130.32,130.29,26.8618]
[1725244057356,16.2396,130.32,130.3,7.6744]
[1725244059967,16.2396,130.32,130.29,26.862]
[1725244060767,7.6746,130.3,130.26,26.8679]
[1725244060996,20.32773228,130.3,130.26,19.1915]
[1725244061278,20.32773228,130.3,130.26,26.8684]
[1725244061446,0.25098,130.29,130.26,26.8684]
[1725244061951,6.47638,130.29,130.26,19.1915]
[1725244065272,15.8233,130.27,130.23,19.1961]
[1725244065450,0.25098,130.26,130.23,19.1961]
[1725244066275,0.25098,130.26,130.23,26.8747]
[1725244069672,0.25098,130.26,130.19,19.2016]
[1725244069673,16.3624,130.22,130.19,19.2016]
[1725244069878,29.01553228,130.22,130.19,19.2016]
[1725244070666,0.12549,130.21,130.17,7.6821]
[1725244070988,0.25098,130.21,130.17,7.6821]
[1725244071667,0.12549,130.21,130.17,7.6821]
[1725244071869,0.12549,130.21,130.16,19.2061]
[1725244072169,0.25098,130.21,130.16,19.2061]
[1725244072566,0.25098,130.21,130.17,7.6817]
[1725244073665,0.25098,130.21,130.18,7.6816]
[1725244073885,36.69493228,130.22,130.18,7.6816]
[1725244074571,36.69493228,130.22,130.17,7.682]
[1725244074772,0.12549,130.21,130.17,7.682]
[1725244074972,0.25098,130.21,130.17,7.682]
[1725244075276,7.93098,130.21,130.17,7.682]
[1725244075764,7.93098,130.21,130.16,26.8888]
[1725244078890,12.65313228,130.2,130.13,19.2108]
[1725244079086,16.1636,130.17,130.14,7.6838]
[1725244081171,16.1636,130.17,130.11,7.6858]
[1725244081172,7.6832,130.16,130.11,7.6858]
[1725244081381,16.1636,130.17,130.09,12.65313228]
[1725244081382,16.1636,130.17,130.13,7.6845]
[1725244082072,16.1636,130.17,130.11,12.65313228]
[1725244082277,16.1636,130.17,130.12,45.0]
[1725244082498,16.1636,130.17,130.15,7.6833]
[1725244082994,16.1636,130.17,130.14,26.893]
[1725244086178,16.1636,130.17,130.14,19.2091]
[1725244086898,0.12549,130.16,130.13,7.6845]
[1725244087092,0.25098,130.16,130.13,7.6845]
[1725244091679,0.25098,130.16,130.14,7.6839]
[1725244091882,16.1636,130.17,130.14,7.6839]
[1725244092785,0.12549,130.16,130.14,7.6839]
[1725244092982,0.25098,130.16,130.14,7.6839]
[1725244094684,16.1636,130.17,130.15,7.6833]
[1725244095081,15.0574,130.2,130.15,19.208]
[1725244095304,22.7379,130.2,130.16,7.6826]
[1725244095605,35.39103228,130.2,130.16,7.6826]
[1725244097508,0.25098,130.19,130.16,7.6826]
[1725244098304,0.25098,130.19,130.17,7.6819]
[1725244098809,0.25098,130.19,130.16,7.6826]
[1725244101292,15.0574,130.2,130.17,19.2052]
[1725244101609,15.0574,130.2,130.19,7.681]
[1725244102007,15.0574,130.2,130.17,19.2052]
[1725244102189,15.0574,130.2,130.18,7.6814]
[1725244102810,15.0574,130.2,130.17,19.2052]
[1725244103110,0.25098,130.19,130.17,19.2052]
[1725244104906,0.25098,130.19,130.12,57.37513228]
[1725244104907,7.6827,130.17,130.12,7.685]
[1725244105109,12.65313228,130.15,130.12,7.685]
[1725244106710,0.12549,130.16,130.12,7.685]
[1725244107014,0.25098,130.16,130.12,7.685]
[1725244107317,0.25098,130.16,130.13,7.6844]
[1725244107921,0.25098,130.16,130.12,7.685]
[1725244109308,0.25098,130.16,130.13,19.2107]
[1725244109611,7.93328,130.17,130.13,26.8953]
[1725244109809,7.6828,130.16,130.13,19.2107]
[1725244110016,0.25098,130.15,130.13,19.2107]
[1725244110213,16.01838,130.15,130.13,19.2107]
[1725244120302,16.01838,130.15,130.13,26.8952]
[1725244121915,16.01838,130.15,130.13,19.2107]
[1725244123617,23.70188,130.15,130.11,7.6857]
[1725244124109,23.70188,130.15,130.1,26.9014]
[1725244124325,23.70188,130.15,130.11,7.6858]
[1725244125326,7.6847,130.13,130.09,7.6865]
[1725244125526,0.25098,130.12,130.09,7.6865]
[1725244126211,7.93618,130.12,130.08,7.6873]
[1725244130122,20.33753228,130.14,130.1,7.6863]
[1725244131723,20.33753228,130.14,130.09,26.9037]
[1725244131924,0.25098,130.13,130.09,26.9037]
[1725244132320,15.7674,130.15,130.11,19.2136]
[1725244133341,28.42053228,130.15,130.11,26.8992]
[1725244133747,0.25098,130.14,130.11,26.8992]
[1725244133950,0.25098,130.14,130.12,7.6851]
[1725244136748,22.8594,130.13,130.02,5.0]
[1725244136919,22.8594,130.13,129.99,17.07106048]
[1725244136920,7.6888,130.06,129.99,15.1293]
[1725244137223,16.5438,130.07,130.0,14.19115348]
[1725244137629,24.2322,130.07,130.0,14.19115348]
[1725244137930,24.2322,130.07,130.0,12.65313228]
[1725244138139,20.0,130.06,130.01,26.9202]
[1725244138744,30.0,130.05,130.01,26.9202]
[1725244138952,20.0,130.04,129.99,22.8219]
[1725244139652,30.0,130.02,129.99,22.8219]
[1725244140630,30.0,130.02,129.99,7.6926]
[1725244142461,20.12549,130.01,129.95,19.2376]
[1725244142628,37.6926,130.0,129.95,19.2376]
[1725244143240,7.6934,129.98,129.92,19.2419]
[1725244144045,7.693,129.99,129.94,7.6957]
[1725244144257,30.0,130.0,129.93,38.4817]
[1725244144454,30.0,130.0,129.93,51.13483228]
[1725244144657,30.0,130.0,129.96,26.9302]
[1725244145663,30.0,130.0,129.93,19.2405]
[1725244145849,30.0,129.97,129.94,1.53875899]
[1725244146351,30.0,129.97,129.95,7.6947]
[1725244146562,20.34493228,130.01,129.96,7.6946]
[1725244147155,12.65313228,130.01,129.97,7.6939]
[1725244148066,20.34513228,130.01,129.96,7.6943]
[1725244148266,0.12549,130.0,129.96,7.6943]
[1725244148565,35.72083228,130.02,129.97,7.694]
[1725244148742,20.0,130.01,129.97,7.694]
[1725244149748,27.6922,130.01,129.96,7.6946]
[1725244150478,27.6922,130.01,129.97,7.694]
[1725244151957,15.3765,130.02,129.97,19.234]
[1725244152165,15.3765,130.02,129.99,7.6928]
[1725244152545,15.3765,130.02,129.97,19.234]
[1725244152546,15.3765,130.02,129.98,7.6933]
[1725244153672,35.72083228,130.02,129.98,7.6933]
[1725244155567,15.3765,130.02,129.98,7.6933]
[1725244155869,28.02963228,130.02,129.98,7.6933]
[1725244156368,35.72073228,130.02,129.98,7.6933]
[1725244157272,28.02963228,130.02,129.98,7.6933]
[1725244159269,35.72083228,130.02,129.98,7.6933]
[1725244162475,28.02963228,130.02,129.99,7.6926]
[1725244163578,15.3765,130.02,129.99,7.6926]
[1725244163776,15.4369,130.06,129.99,12.65313228]
[1725244164082,15.4369,130.06,130.0,46.53778494]
[1725244164267,15.4369,130.06,130.03,7.6902]
[1725244164961,15.4369,130.06,130.02,7.6907]
[1725244167279,23.1257,130.06,130.02,7.6907]
[1725244169395,15.4369,130.06,130.04,7.6898]
[1725244170180,15.4369,130.06,130.03,20.76380406]
[1725244170181,15.4369,130.06,130.0,19.2299]
[1725244170382,12.77862228,130.05,130.0,19.2299]
[1725244170593,7.69,130.04,130.0,26.9221]
[1725244171663,7.6906,130.03,129.98,7.6929]
[1725244171864,7.6906,130.03,129.97,19.2342]
[1725244171865,20.34373228,130.03,129.97,19.2342]
[1725244173069,14.1726,130.04,130.0,7.6922]
[1725244173269,28.09003228,130.06,130.01,1.53806676]
[1725244173890,28.09003228,130.06,129.98,45.0]
[1725244174087,28.09003228,130.06,129.96,38.471]
[1725244174385,20.34343228,130.04,129.99,7.6927]
[1725244176983,7.6909,130.03,129.98,26.9265]
[1725244177491,7.6909,130.03,129.96,38.471]
[1725244177492,12.65313228,130.02,129.96,7.6946]
[1725244177664,14.1057,130.01,129.96,7.6946]
[1725244179791,28.94253228,130.0,129.95,26.9332]
[1725244179998,36.63493228,130.0,129.95,26.9332]
[1725244180892,36.63493228,130.0,129.96,7.6945]
[1725244186286,28.94253228,130.0,129.96,7.6945]
[1725244186469,36.63493228,130.0,129.96,7.6945]
[1725244186873,36.63493228,130.0,129.95,19.238]
[1725244186874,28.94253228,130.0,129.95,19.238]
[1725244187192,36.63493228,130.0,129.95,26.9328]
[1725244187577,16.2894,130.0,129.96,7.6945]
[1725244188997,23.9817,130.0,129.96,7.6945]
[1725244191404,0.12549,129.99,129.96,7.6945]
[1725244192194,23.9817,130.0,129.96,7.6945]
[1725244197004,16.2894,130.0,129.97,7.6939]
[1725244198081,16.2894,130.0,129.98,7.6934]
[1725244200285,16.2894,130.0,129.97,19.2349]
[1725244200905,16.2894,130.0,129.97,26.9287]
[1725244202306,15.0246,130.03,129.99,26.9244]
[1725244202519,22.7156,130.03,129.99,26.9244]
[1725244202808,32.65313228,130.02,129.99,26.9244]
[1725244203109,40.34463228,130.02,129.96,19.2357]
[1725244203610,40.34463228,130.02,129.97,7.6939]
[1725244203793,0.25098,130.01,129.97,7.6939]
[1725244205806,20.0,130.02,129.98,7.6933]
[1725244206003,20.0,130.02,129.96,19.2357]
[1725244206204,20.0,130.02,129.98,7.6932]
[1725244211793,12.65313228,130.01,129.97,7.6938]
[1725244212506,12.65313228,130.01,129.96,19.2357]
[1725244212708,12.65313228,130.01,129.93,26.9364]
[1725244212709,15.4484,129.98,129.93,26.9364]
[1725244212891,15.4484,129.98,129.95,7.6952]
[1725244216815,12.65313228,129.97,129.86,260.8664]
[1725244217017,20.34913228,129.94,129.91,3.69850969]
[1725244217411,20.34913228,129.94,129.89,7.6987]
[1725244217593,0.25098,129.93,129.89,7.6987]
[1725244218395,6.6384,129.94,129.9,7.698]
[1725244220308,0.12549,129.93,129.89,7.6987]
[1725244220506,0.25098,129.93,129.89,7.6987]
[1725244220904,14.3344,129.94,129.89,7.6987]
[1725244220905,6.6384,129.94,129.89,9.23839933]
[1725244221127,6.6384,129.94,129.89,7.6987]
[1725244221321,6.6384,129.94,129.9,7.6982]
[1725244221904,20.0,129.93,129.88,19.2473]
[1725244222119,0.12549,129.92,129.88,26.9466]
[1725244222322,15.4821,129.91,129.86,7.7005]
[1725244222715,15.4821,129.91,129.86,9.2404022]
[1725244223037,15.4821,129.91,129.86,7.7005]
[1725244223222,12.65313228,129.9,129.85,26.9539]
[1725244223406,19.15093228,129.88,129.83,11.40526101]
[1725244223738,19.15093228,129.88,129.83,7.7022]
[1725244223906,6.4978,129.88,129.85,7.7011]
[1725244224106,15.4821,129.91,129.85,7.7011]
[1725244224107,7.6983,129.9,129.85,7.7011]
[1725244224427,7.6995,129.88,129.84,19.2536]
[1725244225113,0.25098,129.87,129.84,19.2536]
[1725244226932,0.25098,129.87,129.82,7.7028]
[1725244226933,6.182,129.85,129.82,7.7028]
[1725244227227,18.83513228,129.85,129.81,26.962]
[1725244230436,6.182,129.85,129.81,26.962]
[1725244230728,6.182,129.85,129.82,7.7028]
[1725244234721,6.182,129.85,129.83,7.7019]
[1725244235021,6.182,129.85,129.82,7.7027]
[1725244235946,6.182,129.85,129.81,26.962]
[1725244240527,7.7023,129.84,129.79,7.7047]
[1725244240737,0.12549,129.83,129.79,7.7047]
[1725244241029,0.25098,129.83,129.79,7.7047]
[1725244241352,7.95338,129.83,129.79,7.7047]
[1725244241723,35.93743228,129.82,129.78,19.2626]
[1725244241954,27.7036,129.81,129.78,19.2626]
[1725244243328,27.7036,129.81,129.76,7.7063]
[1725244244523,27.7036,129.81,129.77,7.7058]
[1725244244754,20.0,129.81,129.77,7.7058]
[1725244247235,16.38166168,129.85,129.81,19.2582]
[1725244247445,6.182,129.85,129.83,7.7021]
[1725244247749,6.182,129.85,129.82,7.7027]
[1725244248151,6.182,129.85,129.81,7.7034]
[1725244248351,6.182,129.85,129.8,7.7041]
[1725244248527,6.182,129.85,129.79,19.2612]
[1725244249032,13.8836,129.85,129.8,7.7041]
[1725244249231,7.82739,129.84,129.79,26.9655]
[1725244249452,0.12549,129.83,129.79,26.9655]
[1725244250428,32.77862228,129.83,129.78,7.7053]
[1725244250656,0.12549,129.82,129.78,7.7053]
[1725244251043,7.7036,129.81,129.77,7.7059]
[1725244251337,23.5764,129.86,129.79,12.65313228]
[1725244251643,23.5764,129.86,129.8,1.54048874]
[1725244252342,23.5764,129.86,129.82,7.7028]
[1725244252542,15.8758,129.86,129.82,7.7028]
[1725244255064,7.7013,129.85,129.81,26.9618]
[1725244255354,14.2252,129.83,129.78,26.9676]
[1725244255530,0.12549,129.82,129.78,26.9676]
[1725244255734,0.25098,129.82,129.78,26.9676]
[1725244255932,7.95388,129.82,129.78,26.9676]
[1725244256436,7.95388,129.82,129.78,19.2624]
[1725244258065,7.7029,129.82,129.78,19.2624]
[1725244259176,6.5226,129.83,129.78,26.9676]
[1725244259677,14.2254,129.83,129.78,26.9676]
[1725244259867,7.7072,129.75,129.7,7.7099]
[1725244260374,42.34899,129.74,129.66,7.712]
[1725244260604,49.64564237,129.74,129.65,26.9948]
[1725244260894,20.25098,129.73,129.64,3.71638582]
[1725244261058,20.25098,129.73,129.62,68.89974237]
[1725244261484,20.25098,129.73,129.64,7.7134]
[1725244261696,7.7105,129.7,129.64,7.7134]
[1725244262063,7.7105,129.7,129.65,7.7128]
[1725244262559,7.7119,129.67,129.61,19.2883]
[1725244262884,7.7125,129.66,129.61,19.2883]
[1725244263184,7.7125,129.66,129.61,27.0037]
[1725244264003,27.42214237,129.66,129.6,0.1]
[1725244264280,23.2102,129.61,129.6,0.1]
[1725244264601,21.8779,129.61,129.6,0.1]
[1725244264894,21.77308,129.61,129.6,0.1]
[1725244266456,21.64759,129.61,129.6,0.1]
[1725244266661,15.139,129.61,129.6,0.1]
[1725244267059,7.7136,129.64,129.6,0.1]
[1725244267263,0.25098,129.63,129.6,0.1]
[1725244268875,0.12549,129.63,129.6,0.1]
[1725244269184,7.7136,129.64,129.6,0.1]
[1725244270184,14.22169,129.65,129.6,0.1]
[1725244270370,7.7154,129.61,129.6,0.1]
[1725244270584,27.84089,129.61,129.6,0.1]
[1725244271094,27.96638,129.61,129.6,0.1]
[1725244271298,45.0,129.64,129.6,0.1]
[1725244271299,7.7147,129.63,129.6,0.1]
[1725244271493,20.25098,129.62,129.6,0.1]
[1725244272188,0.25098,129.62,129.53,19.3005]
[1725244272389,0.25098,129.62,129.5,79.39883411]
[1725244272390,7.7166,129.59,129.54,7.7194]
[1725244272587,0.12549,129.58,129.54,7.7194]
[1725244272789,0.25098,129.58,129.54,7.7194]
[1725244272990,7.716,129.61,129.55,7.7188]
[1725244273185,7.716,129.61,129.52,19.301]
[1725244273186,7.716,129.61,129.56,7.7184]
[1725244273798,20.0,129.62,129.54,19.2979]
[1725244273991,7.7154,129.61,129.54,19.2979]
[1725244274312,6.3831,129.65,129.6,7.7158]
[1725244274479,6.3831,129.65,129.56,34.41423411]
[1725244274480,6.3831,129.65,129.61,7.7154]
[1725244274675,7.7173,129.58,129.53,7.7201]
[1725244274898,7.7173,129.58,129.47,6.4554]
[1725244274899,41.07393411,129.61,129.47,6.4554]
[1725244275080,49.61389579,129.59,129.43,261.2554]
[1725244275281,53.71283411,129.55,129.45,19.3122]
[1725244275480,7.7215,129.51,129.45,19.3122]
[1725244275894,0.12549,129.5,129.45,19.3122]
[1725244276219,7.97298,129.5,129.45,27.0371]
[1725244276399,7.7226,129.49,129.43,7.7257]
[1725244276592,7.97298,129.5,129.44,7.7253]
[1725244276791,7.7214,129.51,129.45,19.3124]
[1725244277001,0.12549,129.52,129.49,7.7225]
[1725244277210,27.7197,129.54,129.49,7.7225]
[1725244277517,7.84589,129.53,129.47,27.0318]
[1725244277892,0.12549,129.53,129.48,7.7228]
[1725244278114,15.3483,129.56,129.52,7.7207]
[1725244278291,14.3769,129.58,129.53,7.72]
[1725244279717,30.0,129.54,129.53,7.72]
[1725244280993,6.6597,129.58,129.54,7.7195]
[1725244281304,30.0,129.55,129.54,7.7195]
[1725244281998,7.7165,129.6,129.55,7.7189]
[1725244282196,7.7165,129.6,129.53,19.2994]
[1725244282197,30.0,129.56,129.54,7.7195]
[1725244282606,30.0,129.56,129.53,19.2994]
[1725244283020,30.0,129.56,129.53,27.0195]
[1725244283292,30.0,129.56,129.52,7.7207]
[1725244283501,0.25098,129.55,129.5,19.3045]
[1725244283713,30.25098,129.55,129.5,19.3045]
[1725244284722,30.0,129.55,129.53,7.72]
[1725244284908,30.0,129.55,129.54,7.7196]
[1725244285417,30.0,129.55,129.52,27.0213]
[1725244285627,30.0,129.55,129.53,7.7201]
[1725244286000,30.0,129.55,129.54,7.7196]
[1725244286895,30.0,129.55,129.49,19.3061]
[1725244287225,7.7204,129.53,129.49,19.3061]
[1725244287401,15.5045,129.53,129.46,19.3103]
[1725244287724,7.722,129.5,129.46,19.3103]
[1725244288493,0.12549,129.51,129.46,27.0343]
[1725244288494,7.7214,129.51,129.46,27.0343]
[1725244288897,7.7214,129.51,129.47,7.7237]
[1725244289402,0.25098,129.5,129.46,27.0346]
[1725244290999,0.25098,129.5,129.43,19.3147]
[1725244291218,27.97298,129.5,129.45,7.7248]
[1725244291605,7.97298,129.5,129.45,7.7249]
[1725244291800,7.7219,129.51,129.45,19.3116]
[1725244292017,20.0,129.5,129.46,7.7242]
[1725244292327,20.0,129.5,129.45,19.3116]
[1725244292328,7.7242,129.47,129.42,19.3167]
[1725244293126,7.7233,129.48,129.43,7.7261]
[1725244293711,0.25098,129.49,129.42,19.3167]
[1725244293907,7.7232,129.48,129.43,7.7256]
[1725244294109,15.5045,129.53,129.5,7.7219]
[1725244294358,15.5045,129.53,129.42,6.6151]
[1725244294359,69.21953411,129.53,129.42,19.3156]
[1725244294530,34.41423411,129.51,129.42,19.3156]
[1725244294825,30.0986,129.43,129.33,16.002]
[1725244295336,22.3725,129.43,129.38,7.7289]
[1725244295513,22.3725,129.43,129.39,7.7285]
[1725244295708,22.3725,129.43,129.38,19.3216]
[1725244296227,30.0988,129.43,129.38,27.0502]
[1725244296429,30.0988,129.43,129.33,19.329]
[1725244296430,7.7277,129.41,129.33,19.329]
[1725244296641,7.97778,129.42,129.36,7.7302]
[1725244296930,30.22409,129.43,129.37,7.7292]
[1725244297115,0.12549,129.42,129.37,7.7292]
[1725244297311,0.25098,129.42,129.37,7.7292]
[1725244298014,30.0986,129.43,129.37,19.3232]
[1725244298015,22.3725,129.43,129.37,19.3232]
[1725244298214,21.6619,129.46,129.4,7.7278]
[1725244298426,21.6619,129.46,129.41,7.7268]
[1725244298634,21.6619,129.46,129.39,19.32]
[1725244298635,21.6619,129.46,129.4,7.7278]
[1725244298936,29.3863,129.46,129.4,7.7278]
[1725244299122,21.6619,129.46,129.41,7.727]
[1725244299530,21.6619,129.46,129.42,7.7264]
[1725244299713,15.4113,129.46,129.42,7.7264]
[1725244299909,15.4113,129.46,129.43,7.7261]
[1725244300738,6.1443,129.49,129.43,19.3143]
[1725244301233,6.1443,129.49,129.44,7.725]
[1725244301415,6.1443,129.49,129.43,19.3143]
[1725244301617,6.1443,129.49,129.45,7.7244]
[1725244301824,16.4433,129.5,129.48,7.7232]
[1725244302211,14.0244,129.53,129.48,7.7232]
[1725244302413,6.3041,129.53,129.48,19.3068]
[1725244302833,6.3041,129.53,129.5,7.7219]
[1725244303331,15.6971,129.54,129.42,38.6321]
[1725244303535,15.6971,129.54,129.26,50.0]
[1725244303536,34.41423411,129.45,129.32,60.1898]
[1725244303738,34.41423411,129.45,129.35,19.3269]
[1725244303911,34.41423411,129.43,129.28,15.2076]
[1725244304113,34.41423411,129.43,129.31,19.3322]
[1725244304353,20.0,129.42,129.31,19.3322]
[1725244304721,27.7267,129.42,129.34,19.3287]
[1725244304923,27.7267,129.42,129.36,7.7298]
[1725244305459,7.7281,129.4,129.34,27.0601]
[1725244305750,0.12549,129.39,129.34,27.0601]
[1725244306052,0.25098,129.39,129.28,56.65052779]
[1725244307223,7.7281,129.4,129.28,56.65052779]
[1725244307430,30.12549,129.41,129.35,7.7308]
[1725244307643,0.12549,129.4,129.35,7.7308]
[1725244307851,0.25098,129.4,129.35,7.7308]
[1725244308144,7.7287,129.39,129.34,19.3287]
[1725244308348,0.12549,129.38,129.34,19.3287]
[1725244308530,0.25098,129.38,129.34,19.3287]
[1725244309530,7.728,129.4,129.34,27.0601]
[1725244310040,0.25098,129.39,129.34,27.0601]
[1725244310413,7.7274,129.41,129.35,7.7309]
[1725244310643,0.25098,129.4,129.35,7.7309]
[1725244310827,20.0,129.42,129.36,7.7302]
[1725244311144,27.7272,129.42,129.36,7.7302]
[1725244312246,0.12549,129.41,129.36,7.7302]
[1725244312842,0.25098,129.41,129.36,7.7302]
[1725244313437,7.97848,129.41,129.36,7.7302]
[1725244313954,41.44292779,129.48,129.36,19.325]
[1725244314247,7.7254,129.45,129.39,7.7285]
[1725244315754,29.9574,129.44,129.39,7.7285]
[1725244316456,22.2317,129.44,129.41,7.7273]
[1725244316644,15.995,129.44,129.41,7.7273]
[1725244316828,6.4951,129.47,129.4,19.3192]
[1725244317035,14.2193,129.47,129.4,19.3192]
[1725244317237,14.2193,129.47,129.41,7.7272]
[1725244317443,7.7247,129.46,129.41,7.7272]
[1725244318443,7.725,129.45,129.4,27.0471]
[1725244319379,7.725,129.45,129.4,19.3192]
[1725244319651,0.12549,129.44,129.4,19.3192]
[1725244319841,0.25098,129.44,129.4,19.3192]
[1725244320356,0.25098,129.44,129.4,27.0471]
[1725244320565,6.4951,129.47,129.37,38.6487]
[1725244320759,15.9816,129.48,129.38,1.54512534]
[1725244321066,7.7257,129.44,129.4,19.3187]
[1725244321238,7.7264,129.43,129.37,7.7295]
[1725244321427,7.7256,129.44,129.38,7.729]
[1725244321628,41.44292779,129.47,129.37,38.6486]
[1725244321831,15.9816,129.48,129.37,38.6486]
[1725244322068,15.9816,129.48,129.42,7.7267]
[1725244322069,23.7048,129.48,129.42,7.7267]
[1725244322570,15.9816,129.48,129.45,7.7248]
[1725244322735,15.9816,129.48,129.44,7.7254]
[1725244323263,15.9816,129.48,129.42,19.3158]
[1725244323437,15.9816,129.48,129.44,7.725]
[1725244323639,14.2171,129.5,129.46,7.7242]
[1725244323640,6.4951,129.5,129.46,7.7242]
[1725244324553,6.4951,129.5,129.45,27.0369]
[1725244325060,15.6368,129.52,129.45,19.312]
[1725244325267,15.6368,129.52,129.47,7.7237]
[1725244326837,23.3577,129.52,129.47,7.7237]
[1725244327237,7.7194,129.55,129.49,7.7224]
[1725244327444,15.7913,129.56,129.49,7.7224]
[1725244327445,20.0,129.54,129.49,7.7224]
[1725244327646,15.7913,129.56,129.49,7.7224]
[1725244327866,23.5102,129.56,129.5,7.7217]
[1725244328065,15.7913,129.56,129.5,7.7217]
[1725244328249,7.7194,129.55,129.5,7.7217]
[1725244329262,23.5098,129.56,129.5,7.7217]
[1725244329444,20.0,129.55,129.5,7.7217]
[1725244329646,20.0,129.55,129.51,7.7213]
[1725244329854,15.7913,129.56,129.52,1.54403628]
[1725244330172,1.434629,129.58,129.53,7.72]
[1725244330539,34.46689462,129.57,129.47,19.308]
[1725244330747,34.46689462,129.55,129.47,27.0313]
[1725244330967,7.7203,129.53,129.48,7.7229]
[1725244331149,7.7194,129.55,129.49,19.3058]
[1725244331355,34.46689462,129.57,129.49,19.3058]
[1725244331356,7.7185,129.56,129.51,7.7213]
[1725244331557,20.0,129.55,129.51,7.7213]
[1725244332139,0.12549,129.57,129.52,7.7206]
[1725244332140,7.84329,129.57,129.52,7.7206]
[1725244332383,1.434629,129.58,129.51,19.3028]
[1725244333166,34.46689462,129.55,129.48,19.3075]
[1725244333350,7.7212,129.52,129.46,7.7242]
[1725244333668,22.922,129.52,129.47,7.7236]
[1725244336343,15.2008,129.52,129.48,7.7231]
[1725244336541,15.2008,129.52,129.5,7.7219]
[1725244336951,6.2187,129.53,129.5,7.7219]
[1725244337162,16.5623,129.55,129.51,7.7211]
[1725244337367,24.2813,129.55,129.51,7.7211]
[1725244337574,24.2813,129.55,129.5,7.7219]
[1725244337869,24.2813,129.55,129.49,19.3059]
[1725244337870,7.7198,129.54,129.49,27.0284]
[1725244338075,16.5623,129.55,129.51,7.7209]
[1725244338949,24.2814,129.55,129.51,7.7209]
[1725244339146,16.5623,129.55,129.51,7.7209]
[1725244341042,16.5623,129.55,129.49,19.3059]
[1725244341242,16.5623,129.55,129.5,7.7219]
[1725244341450,7.7214,129.51,129.46,19.31]
[1725244341839,7.7208,129.52,129.47,7.7236]
[1725244342467,7.723,129.49,129.44,7.7252]
[1725244342666,15.9235,129.49,129.45,7.7249]
[1725244342975,7.7232,129.48,129.43,27.0401]
[1725244343471,23.6462,129.49,129.44,7.7254]
[1725244345668,15.9235,129.49,129.45,19.3116]
[1725244345975,15.9235,129.49,129.46,7.7243]
[1725244346748,15.9235,129.49,129.47,7.7236]
[1725244346949,7.7214,129.51,129.47,7.7236]
[1725244347378,24.2179,129.52,129.47,7.7236]
[1725244348571,7.7214,129.51,129.46,7.7243]
[1725244349449,16.497,129.52,129.47,19.3089]